{"text_format":"1","workbook":"xlsx","n_sheets":3,"sheets":["Sheet1","Sheet2","Sheet3"],"not_rendered":{"charts":0,"images":0,"macros":1,"external_links":0,"defined_names":0,"comments":0,"pivot_tables":0},"unopened":[],"bounds":{"document_bytes":16777216,"sheet_cells":100000,"rows_first":2000,"rows_last":500,"rows_between":2000,"halvings":0,"cell_chars":16384,"cell_head_chars":4096},"cells_cut":0,"cells_raw":0,"read":"whole","date_system":"1900"}

{"sheet":"Sheet1","index":0,"n_rows":95,"n_cols":32,"rows_kept":95,"cut":false,"hidden":false,"merged":[]}
["Ashton Hayes Carbon Calculator 2006"]
["© University of Chester 2006"]
[null,null,null,null,null,null,null,null,null,null,null,null,null,"Home",null,"Ins",null,"Home+ins"]
[1,"What type of property is your home?",null,null,null,null,null,null,"Home",null,null,null,null,"Detached",1,"Very poor insulation",0,{"$f":"O4+Q4","v":1},"Gas",1,null,7.851352534221971]
[null,"Detached",null,null,null,1,null,null,null,null,null,null,null,"Detached",1,"Poor insulation",1,{"$f":"O5+Q5","v":2},"Gas",1,null,5.3074318063175907]
[null,"Semi-detached",null,null,null,6,null,null,null,null,null,null,null,"Detached",1,"Average insulation",2,3,"Gas",1,null,3.8056039860042312]
[null,"Mid-terrace",null,null,null,11,null,null,null,null,null,null,null,"Detached",1,"Good insulation",3,4,"Gas",1,null,2.4020232396571024]
[null,"End-terrace",null,null,null,6,null,null,null,null,null,null,null,"Detached",1,"Very Good insulation",4,5,"Gas",1,null,1.8774424101500888]
[null,null,null,null,null,null,null,null,null,null,null,null,null,"Semi detached",6,"Very poor Insulation",0,6,"Gas",1,null,7]
[null,null,null,null,null,null,null,null,null,null,null,null,null,"Semi detached",6,"Poor Insulation",1,7,"Gas",1,null,5.04]
[2,"What is your main heating fuel?",null,null,null,null,null,null,"Fuel",null,null,null,null,"Semi detached",6,"Average Insulation",2,8,"Gas",1,null,3.94]
[null,"Mains gas",null,null,null,1,null,null,null,null,null,null,null,"Semi detached",6,"Good Insulation",3,9,"Gas",1,null,3.23]
[null,"Electricity",null,null,null,2,null,null,null,null,null,null,null,"Semi detached",6,"Very good Insulation",4,10,"Gas",1,null,3.02]
[null,"Solid fuel",null,null,null,4,null,null,null,null,null,null,null,"Mid terrace",11,"Very poor insulation",0,11,"Gas",1,null,5.1680264758167747]
[null,"Bottled gas",null,null,null,1,null,null,null,null,null,null,null,"Mid terrace",11,"Poor insulation",1,12,"Gas",1,null,3.6988686394025239]
[null,"Oil",null,null,null,3,null,null,null,null,null,null,null,"Mid terrace",11,"Average insulation",2,13,"Gas",1,null,2.8525390226281977]
[null,"Wood",null,null,null,4,null,null,null,null,null,null,null,"Mid terrace",11,"Good insulation",3,14,"Gas",1,null,2.0798254966696441]
[null,null,null,null,null,null,null,null,null,null,null,null,null,"Mid terrace",11,"Very Good insulation",4,15,"Gas",1,null,1.4433020773096057]
[]
[3,"How much loft insulation do you have?",null,null,null,null,null,null,"Loft:",null,null,null,null,"Home:",{"$f":"J4","v":0},"Ins:",{"$f":"INT(AVERAGE(J20,J47,J40))","v":{"$error":"#DIV/0!"}},{"$f":"O20+Q20","v":{"$error":"#DIV/0!"}},"Fuel:",{"$f":"J11","v":0},"Load:",{"$f":"IF(T20=1,(CHOOSE(R20,V4,V5,V6,V7,V8,V9,V10,V11,V12,V13,V14,V15,V16,V17,V18)),IF(T20=2,(CHOOSE(R20,V23,V24,V25,V26,V27,V28,V29,V30,V31,V32,V33,V34,V35,V36,V37)),IF(T20=3,(CHOOSE(R20,V40,V41,V42,V43,V44,V45,V46,V47,V48,V49,V50,V51,V52,V53,V54)),IF(T20=4,(CHOOSE(R20,V57,V58,V59,V60,V61,V62,V63,V64,V65,V66,V67,V68,V69,V70,V71))))))","v":false}]
[null,"No loft/access",null,null,null,1]
[null,"None",null,null,null,1]
[null,"1 inch/25mm",null,null,null,1,null,null,null,null,null,null,null,"Detached",1,"Very poor insulation",0,{"$f":"O23+Q23","v":1},"Electric",2,null,10.333713980661859]
[null,"2 inches/50mm",null,null,null,2,null,null,null,null,null,null,null,"Detached",1,"Poor insulation",1,{"$f":"O24+Q24","v":2},"Electric",2,null,6.9530815890228626]
[null,"3 inches/75mm",null,null,null,2,null,null,null,null,null,null,null,"Detached",1,"Average insulation",2,3,"Electric",2,null,5.9]
[null,"4 inches/100mm",null,null,null,2,null,null,null,null,null,null,null,"Detached",1,"Good insulation",3,4,"Electric",2,null,3.3457579279153911]
[null,"5 inches/125mm",null,null,null,3,null,null,null,null,null,null,null,"Detached",1,"Very Good insulation",4,5,"Electric",2,null,2.6638363055248635]
[null,"6 inches/150mm",null,null,null,3,null,null,null,null,null,null,null,"Semi detached",6,"Very poor Insulation",0,6,"Electric",2,null,11]
[null,"8 inches/200mm",null,null,null,4,null,null,null,null,null,null,null,"Semi detached",6,"Poor Insulation",1,7,"Electric",2,null,7.6]
[null,"10 inches/250mm",null,null,null,4,null,null,null,null,null,null,null,"Semi detached",6,"Average Insulation",2,8,"Electric",2,null,5.9]
[null,"Don't know",null,null,null,1,null,null,null,null,null,null,null,"Semi detached",6,"Good Insulation",3,9,"Electric",2,null,4.4000000000000004]
[null,null,null,null,null,null,null,null,null,null,null,null,null,"Semi detached",6,"Very good Insulation",4,10,"Electric",2,null,3.5]
[null,null,null,null,null,null,null,null,null,null,null,null,null,"Mid terrace",11,"Very poor insulation",0,11,"Electric",2,null,6.7243906035851593]
[null,null,null,null,null,null,null,null,null,null,null,null,null,"Mid terrace",11,"Poor insulation",1,12,"Electric",2,null,4.7746705266198841]
[null,null,null,null,null,null,null,null,null,null,null,null,null,"Mid terrace",11,"Average insulation",2,13,"Electric",2,null,3.6166371266260358]
[null,null,null,null,null,null,null,null,null,null,null,null,null,"Mid terrace",11,"Good insulation",3,14,"Electric",2,null,2.601642990464696]
[null,null,null,null,null,null,null,null,null,null,null,null,null,"Mid terrace",11,"Very Good insulation",4,15,"Electric",2,null,1.980726161887078]
[]
[]
[4,"How much of the property has insulated walls?",null,null,null,null,null,null,"Wall:",null,null,null,null,"Detached",1,"Very poor insulation",0,{"$f":"O40+Q40","v":1},"Oil",3,null,10.63409879815341]
[null,"None",null,null,null,1,null,null,null,null,null,null,null,"Detached",1,"Poor insulation",1,{"$f":"O41+Q41","v":2},"Oil",3,null,7.1108001983010016]
[null,"Partial",null,null,null,3,null,null,null,null,null,null,null,"Detached",1,"Average insulation",2,3,"Oil",3,null,5.2294584414271865]
[null,"Full",null,null,null,5,null,null,null,null,null,null,null,"Detached",1,"Good insulation",3,4,"Oil",3,null,3.308603636132152]
[null,null,null,null,null,null,null,null,null,null,null,null,null,"Detached",1,"Very Good insulation",4,5,"Oil",3,null,2.5148942635851657]
[null,null,null,null,null,null,null,null,null,null,null,null,null,"Semi detached",6,"Very poor Insulation",0,6,"Oil",3,null,9.5]
[5,"How much of the property is double / secondary glazed?",null,null,null,null,null,null,null,null,null,null,null,"Semi detached",6,"Poor Insulation",1,7,"Oil",3,null,7.5]
[null,"None",null,null,null,1,null,null,"Glaze:",null,null,null,null,"Semi detached",6,"Average Insulation",2,8,"Oil",3,null,6.2]
[null,"Some (25%)",null,null,null,2,null,null,null,null,null,null,null,"Semi detached",6,"Good Insulation",3,9,"Oil",3,null,5.3]
[null,"About half",null,null,null,3,null,null,null,null,null,null,null,"Semi detached",6,"Very good Insulation",4,10,"Oil",3,null,4.7]
[null,"Most (75%)",null,null,null,4,null,null,null,null,null,null,null,"Mid terrace",11,"Very poor insulation",0,11,"Oil",3,null,7.2610183139919302]
[null,"All",null,null,null,5,null,null,null,null,null,null,null,"Mid terrace",11,"Poor insulation",1,12,"Oil",3,null,5.1859636731026972]
[null,null,null,null,null,null,null,null,null,null,null,null,null,"Mid terrace",11,"Average insulation",2,13,"Oil",3,null,3.781752764683715]
[null,null,null,null,null,null,null,null,null,null,null,null,null,"Mid terrace",11,"Good insulation",3,14,"Oil",3,null,2.7233154718306385]
[6,"How many cars are there in your household?",null,null,null,null,null,null,"Cars",null,null,null,null,"Mid terrace",11,"Very Good insulation",4,15,"Oil",3,null,2.0386709619301251,null,null,null,null,null,null,null,null,null,1]
[null,"____________________________",null,null,null,null,null,null,null,null,null,null,null,null,null,null,null,null,null,null,null,null,null,null,null,null,null,null,null,null,null,2]
[null,null,null,null,null,null,null,null,null,null,null,null,null,null,null,null,null,null,null,null,null,null,null,null,null,null,null,null,null,null,null,3]
[null,null,null,null,null,null,null,null,null,null,null,null,null,"Detached",1,"Very poor insulation",0,{"$f":"O57+Q57","v":1},"Solid fuel",4,null,20.217528213600595]
[null,"For each car:",null,null,null,null,null,1,null,2,null,3,null,"Detached",1,"Poor insulation",1,{"$f":"O58+Q58","v":2},"Solid fuel",4,null,13.096604158122455]
[7,"What size engine does the car have?",null,null,null,null,null,null,null,null,null,null,null,"Detached",1,"Average insulation",2,3,"Solid fuel",4,null,9.4535586040310271]
[null,"Small (up to 1.4 litres)",null,null,1,null,null,null,null,null,null,null,null,"Detached",1,"Good insulation",3,4,"Solid fuel",4,null,6.45712803741778]
[null,"Medium (1.4 - 2 litres)",null,null,2,null,null,null,null,null,null,null,null,"Detached",1,"Very Good insulation",4,5,"Solid fuel",4,null,4.8640362212576473]
[null,"Large (over 2 litres)",null,null,3,null,null,null,null,null,null,null,null,"Semi detached",6,"Very poor Insulation",0,6,"Solid fuel",4,null,15.2]
[null,"Sports utility vehicle",null,null,4,null,null,null,null,null,null,null,null,"Semi detached",6,"Poor Insulation",1,7,"Solid fuel",4,null,10.4]
[null,null,null,null,null,null,null,null,null,null,null,null,null,"Semi detached",6,"Average Insulation",2,8,"Solid fuel",4,null,7.76]
[null,null,null,null,null,null,null,null,null,null,null,null,null,"Semi detached",6,"Good Insulation",3,9,"Solid fuel",4,null,5.52]
[8,"What fuel does the car use?",null,null,null,null,null,null,null,null,null,null,null,"Semi detached",6,"Very good Insulation",4,10,"Solid fuel",4,null,4.3]
[null,"Petrol",null,null,1,null,null,null,null,null,null,null,null,"Mid terrace",11,"Very poor insulation",0,11,"Solid fuel",4,null,13.162885472217244]
[null,"Diesel",null,null,2,null,null,null,null,null,null,null,null,"Mid terrace",11,"Poor insulation",1,12,"Solid fuel",4,null,8.9749595285557131]
[null,"Autogas","No data",null,0,null,null,null,null,null,null,null,null,"Mid terrace",11,"Average insulation",2,13,"Solid fuel",4,null,5.5123175494727157]
[null,"Biofuel","No data",null,0,null,null,null,null,null,null,null,null,"Mid terrace",11,"Good insulation",3,14,"Solid fuel",4,null,3.9033787786606382]
[null,null,null,null,null,null,null,null,null,null,null,null,null,"Mid terrace",11,"Very Good insulation",4,15,"Solid fuel",4,null,2.9505862969710956]
[]
[9,"What is the approximate annual "]
[null,"mileage for the car?",null,null,null,null,null,null,null,null,null,null,null,null,null,null,null,null,"Car size","Fuel","Ef",null,"Miles","Multiple",null,null,null,null,"Car size"]
[null,"Up to 2,500 miles",null,null,1,null,null,null,null,null,null,null,null,"Car 1 size:",{"$f":"H59","v":0},"Car 2 size:",{"$f":"J59","v":0},null,null,null,0,null,null,0,null,null,null,null,0]
[null,"2,500 - 4,999 miles",null,null,2,null,null,null,null,null,null,null,null,"Fuel:",{"$f":"H66","v":0},"Fuel:",{"$f":"J66","v":0},null,1,1,2.7999999999999998E-4,null,1,2500,null,null,null,null,1]
[null,"5,000 - 7,499 miles",null,null,3,null,null,null,null,null,null,null,null,"Ef",{"$f":"IF(O76=1,(CHOOSE(O75,U76,U77,U78,U79)),IF(O76=2,(CHOOSE(O75,U80,U81,U82,U83))))","v":false},"Ef",{"$f":"IF(Q76=1,(CHOOSE(Q75,U76,U77,U78,U79)),IF(Q76=2,(CHOOSE(Q75,U80,U81,U82,U83))))","v":false},null,2,1,3.6000000000000002E-4,null,2,4999,null,null,null,null,2]
[null,"7,500 - 9,999 miles",null,null,4,null,null,null,null,null,null,null,null,"Miles:",{"$f":"H73","v":0},"Miles:",{"$f":"J73","v":0},null,3,1,4.4000000000000002E-4,null,3,7499,null,null,null,null,3]
[null,"10, 000 - 12,499 miles",null,null,5,null,null,null,null,null,null,null,null,"Car 1 C:",{"$f":"IF(O78=0,0,CHOOSE(O78,X76,X77,X78,X79,X80,X81)*O77)","v":0},"Car 2 C:",{"$f":"IF(Q78=0,0,(CHOOSE(Q78,X76,X77,X78,X79,X80,X81))*Q77)","v":0},null,4,1,5.9999999999999995E-4,null,4,9999,null,null,null,null,4]
[null,"Over 12,500 miles",null,null,6,null,null,null,null,null,null,null,null,null,null,null,null,null,1,2,1.9000000000000001E-4,null,5,12499]
[null,null,null,null,null,null,null,null,null,null,null,null,null,null,null,null,null,null,2,2,2.0000000000000001E-4,null,6,15000]
[null,null,null,null,null,null,null,null,null,null,null,null,null,null,null,null,null,null,3,2,2.3000000000000001E-4]
[10,"How many short haul ",null,null,null,null,null,null,null,null,null,null,null,"S Haul No:",{"$f":"H83","v":0},null,null,null,4,2,5.9999999999999995E-4]
[null,"(UK, Europe and Mediterranean)",null,null,null,null,null,null,null,null,null,null,null,"S HaulC:",{"$f":"O83*0.6","v":0}]
[null," return flights have been taken",null,null,null,null,null,null,null,null,null,null,null,null,null,null,null,null,"Car 3 size:",{"$f":"L59","v":0}]
[null,"by the household in the past year?",null,null,null,null,null,null,null,null,null,null,null,null,null,null,null,null,"Fuel:",{"$f":"L66","v":0}]
[null,null,null,null,null,null,null,null,null,null,null,null,null,null,null,null,null,null,"Ef",{"$f":"IF(T86=1,(CHOOSE(T85,U76,U77,U78,U79)),IF(T86=2,(CHOOSE(T85,U80,U81,U82,U83))))","v":false}]
[11,"How many long haul ",null,null,null,null,null,null,null,null,null,null,null,"L Haul No:",{"$f":"H91","v":0},null,null,null,"Miles:",{"$f":"L73","v":0}]
[null,"(rest of the world) return flights ",null,null,null,null,null,null,null,null,null,null,null,"L Haul C:",{"$f":"O88*3.6","v":0},null,null,null,"Car 3 C:",{"$f":"IF(T88=0,0,(CHOOSE(T88,X76,X77,X78,X79,X80,X81))*T87)","v":0}]
[null,"have been taken by"]
[null,"the household in the past year?",null,null,null,null,null,null,null,null,null,null,null,"Flt C:",{"$f":"O84+O89","v":0}]
[null,"_____________________"]
[]
[null,null,null,null,null,null,null,null,null,null,null,null,null,"Total Carbon:",null,{"$f":"V20+O79+Q79+T89+O91","v":0}]
[null,"Your total Carbon footprint is",null,null,null,{"$f":"V20+O79+Q79+T89+O91","v":0},"tonnes per year"]

{"sheet":"Sheet2","index":1,"n_rows":0,"n_cols":0,"rows_kept":0,"cut":false,"hidden":false,"merged":[]}

{"sheet":"Sheet3","index":2,"n_rows":0,"n_cols":0,"rows_kept":0,"cut":false,"hidden":false,"merged":[]}